[Event "32nd GER-ch Seniors-50 2020"]
[Site "Magdeburg"]
[Date "2020.08.14"]
[Round "1.1"]
[White "Lundin, Jan"]
[Black "Meyer, Bernd"]
[Result "1-0"]
[ECO "B00"]
[WhiteElo "2321"]
[BlackElo "1966"]
[Annotator "ChessBase"]
[PlyCount "51"]
[EventDate "2020.08.14"]
[EventType "swiss"]
[EventCountry "GER"]
[SourceTitle "playchess.com"]
[Source "ChessBase"]
[SourceQuality "1"]
[TimeControl "40/5400+30:1800+30"]

1. e4 {[%emt 0:00:00]} d6 {[%emt 0:00:00]} 2. Nc3 {[%emt 0:00:33]} Nf6 {[%emt 0:00:08]} 3. f4 {[%emt 0:00:20]} g6 {[%emt 0:02:14]} 4. Nf3 {[%emt 0:00:57]} Bg7 {[%emt 0:00:34]} 5. Be2 {[%emt 0:00:24]} c5 {[%emt 0:05:54]} 6. O-O {[%emt 0:00:34]} O-O {[%emt 0:00:24]} 7. d3 {[%emt 0:00:26]} Nc6 {[%emt 0:01:22]} 8. Qe1 {[%emt 0:00:12]} e6 {[%emt 0:05:03]} 9. Bd1 {[%emt 0:02:50]} a6 {[%emt 0:05:46]} 10. Kh1 {[%emt 0:09:41]} b5 {[%emt 0:00:48]} 11. a3 {[%emt 0:00:30]} Rb8 {[%emt 0:10:21]} 12. Ne2 {[%emt 0:08:54]} d5 {[%emt 0:04:42]} 13. e5 {[%emt 0:05:18]} Nd7 {[%emt 0:00:37]} 14. d4 {[%emt 0:01:44]} f6 {[%emt 0:07:10]} 15. c3 {[%emt 0:03:53]} Qe7 {[%emt 0:04:54]} 16. Be3 {[%emt 0:07:32]} c4 {[%emt 0:01:52]} 17. exf6 {[%emt 0:03:51]} Nxf6 {[%emt 0:01:45]} 18. Bc2 {[%emt 0:02:27]} Bd7 {[%emt 0:02:32]} 19. Ng5 {[%emt 0:04:27]} Bh6 {[%emt 0:06:42]} 20. Qh4 {[%emt 0:04:50]} Bxg5 {[%emt 0:05:55]} 21. fxg5 {[%emt 0:06:39]} Nh5 {[%emt 0:01:13]} 22. g4 {[%emt 0:02:59]} Rxf1+ {[%emt 0:02:43]} 23. Rxf1 {[%emt 0:00:26]} Ng7 {[%emt 0:00:08]} 24. Nf4 {[%emt 0:11:02]} Ne8 {[%emt 0:09:12]} 25. Bxg6 {[%emt 0:06:56]} Nc7 {[%emt 0:02:51]} 26. Nh5 {[%emt 0:03:34]} 1-0

[Event "32nd GER-ch Seniors-50 2020"]
[Site "Magdeburg"]
[Date "2020.08.14"]
[Round "1.5"]
[White "Koehler, Gerhard"]
[Black "Kottke, Steffen"]
[Result "1-0"]
[ECO "A30"]
[WhiteElo "2213"]
[BlackElo "1928"]
[Annotator "ChessBase"]
[PlyCount "69"]
[EventDate "2020.08.14"]
[EventType "swiss"]
[EventCountry "GER"]
[SourceTitle "playchess.com"]
[Source "ChessBase"]
[SourceQuality "1"]
[TimeControl "40/5400+30:1800+30"]

1. c4 {[%emt 0:00:00]} c5 {[%emt 0:00:00]} 2. g3 {[%emt 0:00:00]} Nf6 {[%emt 0:00:06]} 3. Bg2 {[%emt 0:00:00]} g6 {[%emt 0:00:19]} 4. Nc3 {[%emt 0:00:00]} Bg7 {[%emt 0:00:15]} 5. a3 {[%emt 0:00:11]} Nc6 {[%emt 0:01:52]} 6. Rb1 {[%emt 0:00:26]} d6 {[%emt 0:04:38]} 7. b4 {[%emt 0:00:47]} cxb4 {[%emt 0:01:34]} 8. axb4 {[%emt 0:00:45]} O-O {[%emt 0:05:57]} 9. d3 {[%emt 0:02:16]} Rb8 {[%emt 0:17:35]} 10. Nf3 {[%emt 0:04:04]} Ng4 {[%emt 0:00:30]} 11. Bd2 {[%emt 0:02:55]} Nge5 {[%emt 0:00:38]} 12. Ng5 {[%emt 0:01:37]} h6 {[%emt 0:04:37]} 13. Nh3 {[%emt 0:01:03]} g5 {[%emt 0:00:21]} 14. O-O {[%emt 0:06:11]} Bg4 {[%emt 0:04:07]} 15. f3 {[%emt 0:00:34]} Be6 {[%emt 0:01:27]} 16. Nf2 {[%emt 0:03:08]} Ng6 {[%emt 0:01:26]} 17. Qa4 {[%emt 0:09:18]} a6 {[%emt 0:14:05]} 18. b5 {[%emt 0:12:16]} axb5 {[%emt 0:00:39]} 19. Qxb5 {[%emt 0:00:23]} Qd7 {[%emt 0:04:16]} 20. e3 {[%emt 0:06:06]} f5 {[%emt 0:04:36]} 21. f4 {[%emt 0:07:55]} gxf4 {[%emt 0:00:25]} 22. exf4 {[%emt 0:00:18]} h5 {[%emt 0:01:20]} 23. Nh3 {[%emt 0:06:17]} Bd4+ {[%emt 0:00:14]} 24. Kh1 {[%emt 0:00:17]} Bf6 {[%emt 0:00:02]} 25. Nd5 {[%emt 0:01:56]} h4 {[%emt 0:05:08]} 26. Nxf6+ {[%emt 0:01:05]} exf6 {[%emt 0:00:05]} 27. Rfe1 {[%emt 0:02:33]} Kg7 {[%emt 0:02:52]} 28. Bc3 {[%emt 0:00:22]} hxg3 {[%emt 0:00:55]} 29. hxg3 {[%emt 0:00:18]} Nd8 {[%emt 0:06:32]} 30. Qb6 {[%emt 0:08:18]} Ra8 {[%emt 0:01:04]} 31. Ng5 {[%emt 0:01:32]} Rh8+ {[%emt 0:00:48]} 32. Kg1 {[%emt 0:00:14]} Bg8 {[%emt 0:00:52]} 33. Qd4 {[%emt 0:01:44]} Ne5 {[%emt 0:02:49]} 34. fxe5 {[%emt 0:01:00]} fxe5 {[%emt 0:00:01]} 35. Rxe5 {[%emt 0:00:50]} 1-0

[Event "32nd GER-ch Seniors-50 2020"]
[Site "Magdeburg"]
[Date "2020.08.14"]
[Round "1.6"]
[White "Leib, Britta"]
[Black "Metz, Hartmut"]
[Result "0-1"]
[ECO "B10"]
[WhiteElo "1903"]
[BlackElo "2209"]
[Annotator "ChessBase"]
[PlyCount "77"]
[EventDate "2020.08.14"]
[EventType "swiss"]
[EventCountry "GER"]
[SourceTitle "playchess.com"]
[Source "ChessBase"]
[SourceQuality "1"]
[TimeControl "40/5400+30:1800+30"]

1. e4 {[%emt 0:00:00]} c6 {[%emt 0:00:00]} 2. Nf3 {[%emt 0:00:00]} d5 {[%emt 0:00:00]} 3. Nc3 {[%emt 0:00:22]} dxe4 {[%emt 0:00:00]} 4. Nxe4 {[%emt 0:00:13]} Nf6 {[%emt 0:00:00]} 5. Nc3 {[%emt 0:03:15]} Bg4 {[%emt 0:01:25]} 6. h3 {[%emt 0:00:34]} Bh5 {[%emt 0:00:33]} 7. Be2 {[%emt 0:00:35]} Nbd7 {[%emt 0:04:19]} 8. Ne5 {[%emt 0:04:10]} Bxe2 {[%emt 0:00:10]} 9. Qxe2 {[%emt 0:00:10]} Nxe5 {[%emt 0:00:22]} 10. Qxe5 {[%emt 0:00:11]} e6 {[%emt 0:01:12]} 11. a3 {[%emt 0:01:57]} Bd6 {[%emt 0:01:31]} 12. Qe2 {[%emt 0:01:36]} O-O {[%emt 0:02:04]} 13. O-O {[%emt 0:01:38]} Qa5 {[%emt 0:16:11]} 14. d3 {[%emt 0:11:30]} Rfd8 {[%emt 0:06:46]} 15. Re1 {[%emt 0:08:28]} Bc7 {[%emt 0:13:07]} 16. Bd2 {[%emt 0:07:30]} Qf5 {[%emt 0:02:53]} 17. Rad1 {[%emt 0:06:27]} Rac8 {[%emt 0:15:28]} 18. Be3 {[%emt 0:21:49]} Qe5 {[%emt 0:04:18]} 19. g3 {[%emt 0:03:07]} Nd5 {[%emt 0:04:17]} 20. Bd2 {[%emt 0:00:50]} Qf5 {[%emt 0:01:33]} 21. Kg2 {[%emt 0:01:42]} Qg6 {[%emt 0:03:36]} 22. Qe4 {[%emt 0:04:49]} Ne7 {[%emt 0:05:32]} 23. Qxg6 {[%emt 0:07:05]} Nxg6 {[%emt 0:01:15]} 24. Re4 {[%emt 0:01:06]} Be5 {[%emt 0:01:44]} 25. Rde1 {[%emt 0:01:36]} Bf6 {[%emt 0:06:23]} 26. Nd1 {[%emt 0:04:33]} Ne7 {[%emt 0:01:26]} 27. Bc3 {[%emt 0:00:09]} Bxc3 {[%emt 0:00:32]} 28. Nxc3 {[%emt 0:00:03]} Nd5 {[%emt 0:00:14]} 29. Nb1 {[%emt 0:03:10]} Kf8 {[%emt 0:00:39]} 30. f4 {[%emt 0:00:35]} h5 {[%emt 0:00:57]} 31. Kf3 {[%emt 0:00:08]} g6 {[%emt 0:00:26]} 32. Nd2 {[%emt 0:00:30]} Ne7 {[%emt 0:00:37]} 33. Rb4 {[%emt 0:04:54]} Rc7 {[%emt 0:01:05]} 34. Ne4 {[%emt 0:00:02]} Nf5 {[%emt 0:00:46]} 35. Rc1 {[%emt 0:01:45]} b5 {[%emt 0:03:40]} 36. Nf2 {[%emt 0:00:40]} Nd4+ {[%emt 0:00:34]} 37. Ke3 {[%emt 0:00:21]} c5 {[%emt 0:00:17]} 38. Ne4 Nf5+ 39. Kf3 0-1

[Event "32nd GER-ch Seniors-50 2020"]
[Site "Magdeburg"]
[Date "2020.08.14"]
[Round "1.7"]
[White "Vatter, Hans-Joachim"]
[Black "Dolezal, Hans-Peter"]
[Result "1-0"]
[ECO "C42"]
[WhiteElo "2204"]
[BlackElo "1830"]
[Annotator "ChessBase"]
[PlyCount "72"]
[EventDate "2020.08.14"]
[EventType "swiss"]
[EventCountry "GER"]
[SourceTitle "playchess.com"]
[Source "ChessBase"]
[SourceQuality "1"]
[TimeControl "40/5400+30:1800+30"]

1. e4 {[%emt 0:00:00]} e5 {[%emt 0:00:00]} 2. Nf3 {[%emt 0:00:00]} Nf6 {[%emt 0:00:00]} 3. Nxe5 {[%emt 0:00:00]} d6 {[%emt 0:00:07]} 4. Nf3 {[%emt 0:00:04]} Nxe4 {[%emt 0:00:09]} 5. Nc3 {[%emt 0:00:07]} Nxc3 {[%emt 0:00:25]} 6. dxc3 {[%emt 0:00:03]} Be7 {[%emt 0:00:33]} 7. Bf4 {[%emt 0:01:32]} O-O {[%emt 0:04:06]} 8. Qd2 {[%emt 0:00:07]} Nd7 {[%emt 0:00:57]} 9. O-O-O {[%emt 0:00:21]} Nf6 {[%emt 0:00:36]} 10. Bd3 {[%emt 0:01:29]} c5 {[%emt 0:09:42]} 11. c4 {[%emt 0:04:46]} b5 {[%emt 0:08:39]} 12. Rhe1 {[%emt 0:02:42]} Be6 {[%emt 0:16:55]} 13. Ng5 {[%emt 0:09:29]} Bxc4 {[%emt 0:03:44]} 14. Bxc4 {[%emt 0:02:19]} bxc4 {[%emt 0:00:08]} 15. Rxe7 {[%emt 0:00:06]} Qxe7 {[%emt 0:09:28]} 16. Bxd6 {[%emt 0:00:25]} Qd8 {[%emt 0:01:46]} 17. Bxf8 {[%emt 0:00:17]} Qxd2+ {[%emt 0:00:16]} 18. Rxd2 {[%emt 0:01:18]} Kxf8 {[%emt 0:01:15]} 19. f3 {[%emt 0:03:23]} h6 {[%emt 0:06:44]} 20. Nh3 {[%emt 0:01:14]} Rc8 {[%emt 0:03:30]} 21. Nf4 {[%emt 0:02:14]} Rc7 {[%emt 0:01:54]} 22. Rd6 {[%emt 0:01:34]} Ke8 {[%emt 0:12:21]} 23. Nd5 {[%emt 0:13:09]} Nxd5 {[%emt 0:00:34]} 24. Rxd5 {[%emt 0:00:02]} Ke7 {[%emt 0:01:25]} 25. Kd2 {[%emt 0:02:08]} Ke6 {[%emt 0:04:18]} 26. Rd8 {[%emt 0:00:13]} Kf5 {[%emt 0:01:43]} 27. Kc3 {[%emt 0:00:12]} Kf4 {[%emt 0:06:08]} 28. Re8 {[%emt 0:06:16]} h5 {[%emt 0:02:06]} 29. Kxc4 {[%emt 0:02:02]} g5 {[%emt 0:00:25]} 30. Re4+ {[%emt 0:02:37]} Kf5 {[%emt 0:00:23]} 31. Re2 {[%emt 0:00:34]} Kf4 {[%emt 0:00:54]} 32. Rd2 {[%emt 0:01:20]} g4 {[%emt 0:03:37]} 33. fxg4 {[%emt 0:00:38]} hxg4 {[%emt 0:00:50]} 34. Rf2+ {[%emt 0:05:08]} Ke5 {[%emt 0:00:48]} 35. g3 f5 36. Re2+ Kf6 1-0

[Event "32nd GER-ch Seniors-50 2020"]
[Site "Magdeburg"]
[Date "2020.08.16"]
[Round "3.3"]
[White "Koehler, Gerhard"]
[Black "Schatz, Christian"]
[Result "0-1"]
[ECO "A36"]
[WhiteElo "2213"]
[BlackElo "2162"]
[Annotator "ChessBase"]
[PlyCount "56"]
[EventDate "2020.08.14"]
[EventType "swiss"]
[EventCountry "GER"]
[SourceTitle "playchess.com"]
[Source "ChessBase"]
[SourceQuality "1"]
[TimeControl "40/5400+30:1800+30"]

1. c4 {[%emt 0:00:01]} c5 {[%emt 0:00:00]} 2. g3 {[%emt 0:00:14]} g6 {[%emt 0:00:03]} 3. Bg2 {[%emt 0:00:18]} Bg7 {[%emt 0:00:05]} 4. Nc3 {[%emt 0:00:16]} Nc6 {[%emt 0:00:09]} 5. a3 {[%emt 0:01:10]} Nf6 {[%emt 0:00:49]} 6. Rb1 {[%emt 0:00:23]} a5 {[%emt 0:01:50]} 7. d3 {[%emt 0:01:14]} O-O {[%emt 0:00:27]} 8. Nf3 {[%emt 0:01:19]} d5 {[%emt 0:03:54]} 9. cxd5 {[%emt 0:00:15]} Nxd5 {[%emt 0:00:05]} 10. Bd2 {[%emt 0:00:44]} e6 {[%emt 0:03:22]} 11. h4 {[%emt 0:02:03]} Nf6 {[%emt 0:03:46]} 12. Rc1 {[%emt 0:11:52]} Bd7 {[%emt 0:01:34]} 13. Bf4 {[%emt 0:01:38]} Re8 {[%emt 0:04:27]} 14. Nb5 {[%emt 0:12:02]} e5 {[%emt 0:05:04]} 15. Bd2 {[%emt 0:00:31]} e4 {[%emt 0:03:37]} 16. dxe4 {[%emt 0:04:43]} Nxe4 {[%emt 0:00:12]} 17. Bf4 {[%emt 0:00:04]} Rc8 {[%emt 0:05:49]} 18. Ng5 {[%emt 0:04:06]} Bf5 {[%emt 0:09:57]} 19. Nxe4 {[%emt 0:03:39]} Bxe4 {[%emt 0:00:32]} 20. Bxe4 {[%emt 0:00:07]} Rxe4 {[%emt 0:00:53]} 21. Nd6 {[%emt 0:00:51]} Rd4 {[%emt 0:00:37]} 22. Qb3 {[%emt 0:03:22]} Rxd6 {[%emt 0:02:00]} 23. Bxd6 {[%emt 0:00:09]} Qxd6 {[%emt 0:00:17]} 24. Qxb7 {[%emt 0:00:04]} Rb8 {[%emt 0:02:24]} 25. Qa6 {[%emt 0:00:24]} Bxb2 {[%emt 0:02:59]} 26. O-O {[%emt 0:00:09]} Bxc1 {[%emt 0:00:37]} 27. Rxc1 {[%emt 0:00:02]} Rb2 {[%emt 0:05:23]} 28. e3 {[%emt 0:01:53]} Rd2 {[%emt 0:02:24]} 0-1

[Event "32nd GER-ch Seniors-50 2020"]
[Site "Magdeburg"]
[Date "2020.08.16"]
[Round "3.8"]
[White "Namyslo, Holger"]
[Black "Wagner, Bernd"]
[Result "1-0"]
[ECO "C02"]
[WhiteElo "2149"]
[BlackElo "2070"]
[Annotator "ChessBase"]
[PlyCount "51"]
[EventDate "2020.08.14"]
[EventType "swiss"]
[EventCountry "GER"]
[SourceTitle "playchess.com"]
[Source "ChessBase"]
[SourceQuality "1"]
[TimeControl "40/5400+30:1800+30"]

1. e4 {[%emt 0:00:00]} e6 {[%emt 0:00:13]} 2. d4 {[%emt 0:00:07]} d5 {[%emt 0:00:16]} 3. e5 {[%emt 0:01:05]} c5 {[%emt 0:00:35]} 4. c3 {[%emt 0:00:04]} Nc6 {[%emt 0:00:13]} 5. Nf3 {[%emt 0:00:05]} Qb6 {[%emt 0:01:06]} 6. Be2 {[%emt 0:02:48]} Be7 {[%emt 0:02:22]} 7. O-O {[%emt 0:00:41]} Bd7 {[%emt 0:01:35]} 8. dxc5 {[%emt 0:10:07]} Bxc5 {[%emt 0:01:44]} 9. b4 {[%emt 0:04:13]} Be7 {[%emt 0:00:21]} 10. Bd3 {[%emt 0:02:03]} f5 {[%emt 0:08:35]} 11. Re1 {[%emt 0:02:34]} O-O-O {[%emt 0:01:57]} 12. a4 {[%emt 0:02:01]} Nh6 {[%emt 0:06:13]} 13. a5 {[%emt 0:02:27]} Qc7 {[%emt 0:00:10]} 14. Na3 {[%emt 0:00:47]} Nf7 {[%emt 0:02:36]} 15. Nb5 {[%emt 0:06:08]} Qb8 {[%emt 0:00:15]} 16. Qe2 {[%emt 0:04:37]} g5 {[%emt 0:07:58]} 17. Nbd4 {[%emt 0:01:08]} g4 {[%emt 0:06:47]} 18. Nxc6 {[%emt 0:00:12]} bxc6 {[%emt 0:00:08]} 19. Nd4 {[%emt 0:01:55]} Rdg8 {[%emt 0:05:35]} 20. Nxf5 {[%emt 0:00:59]} Bf8 {[%emt 0:04:31]} 21. Nd4 {[%emt 0:03:19]} Nxe5 {[%emt 0:00:58]} 22. Qxe5 {[%emt 0:02:33]} Bd6 {[%emt 0:00:14]} 23. Ba6+ {[%emt 0:00:39]} Kd8 {[%emt 0:03:05]} 24. Nxe6+ {[%emt 0:01:38]} Bxe6 {[%emt 0:00:32]} 25. Qxe6 {[%emt 0:00:11]} Rg6 {[%emt 0:01:07]} 26. Bg5+ {[%emt 0:01:48]} 1-0

[Event "32nd GER-ch Seniors-50 2020"]
[Site "Magdeburg"]
[Date "2020.08.17"]
[Round "4.3"]
[White "Biebinger, Gerhard"]
[Black "Loew, Gerald"]
[Result "0-1"]
[ECO "A55"]
[WhiteElo "2226"]
[BlackElo "2152"]
[Annotator "ChessBase"]
[PlyCount "91"]
[EventDate "2020.08.14"]
[EventType "swiss"]
[EventCountry "GER"]
[SourceTitle "playchess.com"]
[Source "ChessBase"]
[SourceQuality "1"]
[TimeControl "40/5400+30:1800+30"]

1. d4 {[%emt 0:00:00]} d6 {[%emt 0:00:00]} 2. Nf3 {[%emt 0:00:36]} Nf6 {[%emt 0:00:18]} 3. c4 {[%emt 0:00:12]} Nbd7 {[%emt 0:00:25]} 4. Nc3 {[%emt 0:00:53]} e5 {[%emt 0:00:24]} 5. e4 {[%emt 0:04:30]} Be7 {[%emt 0:00:33]} 6. Be2 {[%emt 0:00:38]} O-O {[%emt 0:00:14]} 7. O-O {[%emt 0:00:11]} c6 {[%emt 0:00:28]} 8. Be3 {[%emt 0:02:46]} a6 {[%emt 0:01:30]} 9. d5 {[%emt 0:00:38]} cxd5 {[%emt 0:01:12]} 10. cxd5 {[%emt 0:00:07]} Ng4 {[%emt 0:00:54]} 11. Bd2 {[%emt 0:03:43]} b5 {[%emt 0:00:25]} 12. Ne1 {[%emt 0:02:00]} Ngf6 {[%emt 0:01:30]} 13. Nc2 {[%emt 0:05:53]} Nb6 {[%emt 0:05:36]} 14. f3 {[%emt 0:28:11]} Bd7 {[%emt 0:05:12]} 15. Be3 {[%emt 0:02:38]} Qb8 {[%emt 0:03:04]} 16. Qd2 {[%emt 0:02:47]} Rc8 {[%emt 0:00:58]} 17. Rfc1 {[%emt 0:00:52]} Nc4 {[%emt 0:05:23]} 18. Bxc4 {[%emt 0:00:09]} Rxc4 {[%emt 0:00:57]} 19. b3 {[%emt 0:03:58]} Rc8 {[%emt 0:02:37]} 20. a4 {[%emt 0:06:36]} bxa4 {[%emt 0:10:45]} 21. bxa4 {[%emt 0:00:16]} Qb3 {[%emt 0:04:16]} 22. Ra3 {[%emt 0:00:42]} Qc4 {[%emt 0:03:15]} 23. Ne2 {[%emt 0:03:01]} a5 {[%emt 0:05:16]} 24. Raa1 {[%emt 0:08:49]} Rab8 {[%emt 0:04:56]} 25. Ne1 {[%emt 0:01:18]} Qa6 {[%emt 0:09:43]} 26. Rxc8+ {[%emt 0:02:42]} Rxc8 {[%emt 0:00:46]} 27. Nc3 {[%emt 0:01:47]} Qc4 {[%emt 0:09:54]} 28. Nb5 {[%emt 0:00:24]} Bxb5 {[%emt 0:01:34]} 29. axb5 Qxb5 {[%emt 0:00:16]} 30. Qxa5 {[%emt 0:00:57]} Qe2 {[%emt 0:05:53]} 31. Qd2 {[%emt 0:00:20]} Qxd2 {[%emt 0:06:41]} 32. Bxd2 {[%emt 0:00:08]} Kf8 {[%emt 0:00:39]} 33. Kf2 {[%emt 0:00:16]} Nd7 {[%emt 0:01:32]} 34. Be3 {[%emt 0:01:34]} Bd8 {[%emt 0:01:02]} 35. Ra6 {[%emt 0:00:15]} Ke7 {[%emt 0:00:38]} 36. Ke2 {[%emt 0:04:08]} Rb8 {[%emt 0:01:08]} 37. Nd3 {[%emt 0:00:13]} Rb1 {[%emt 0:04:20]} 38. Bd2 {[%emt 0:06:30]} Bb6 {[%emt 0:01:00]} 39. Be3 {[%emt 0:01:56]} Bxe3 {[%emt 0:02:05]} 40. Kxe3 {[%emt 0:00:04]} h5 {[%emt 0:00:40]} 41. g3 {[%emt 0:08:37]} g6 {[%emt 0:07:12]} 42. Ra7 {[%emt 0:04:43]} Ke8 {[%emt 0:01:53]} 43. Ra8+ {[%emt 0:00:23]} Ke7 {[%emt 0:00:10]} 44. Ra7 {[%emt 0:00:06]} Ke8 {[%emt 0:00:07]} 45. Ra8+ {[%emt 0:00:05]} Ke7 {[%emt 0:00:05]} 46. Ra7 0-1

[Event "32nd GER-ch Seniors-50 2020"]
[Site "Magdeburg"]
[Date "2020.08.18"]
[Round "5.5"]
[White "Koehler, Gerhard"]
[Black "Lindam, Ingo"]
[Result "1-0"]
[ECO "E91"]
[WhiteElo "2213"]
[BlackElo "2142"]
[Annotator "ChessBase"]
[PlyCount "99"]
[EventDate "2020.08.14"]
[EventType "swiss"]
[EventCountry "GER"]
[SourceTitle "playchess.com"]
[Source "ChessBase"]
[SourceQuality "1"]
[TimeControl "40/5400+30:1800+30"]

1. c4 {[%emt 0:00:00]} Nf6 {[%emt 0:01:06]} 2. Nc3 {[%emt 0:00:00]} g6 {[%emt 0:00:07]} 3. e4 {[%emt 0:00:00]} d6 {[%emt 0:00:03]} 4. d4 {[%emt 0:00:04]} Bg7 {[%emt 0:00:13]} 5. Be2 {[%emt 0:00:20]} O-O {[%emt 0:00:03]} 6. Nf3 {[%emt 0:00:10]} Na6 {[%emt 0:00:12]} 7. O-O {[%emt 0:00:14]} e5 {[%emt 0:00:12]} 8. Re1 {[%emt 0:00:23]} c6 {[%emt 0:00:17]} 9. Bf1 {[%emt 0:01:42]} exd4 {[%emt 0:00:25]} 10. Nxd4 {[%emt 0:00:27]} Ng4 {[%emt 0:00:13]} 11. Nf3 {[%emt 0:06:38]} Nc5 {[%emt 0:05:52]} 12. h3 {[%emt 0:09:30]} Ne5 {[%emt 0:00:39]} 13. Nd4 {[%emt 0:17:59]} Ned3 {[%emt 0:17:37]} 14. Bxd3 {[%emt 0:00:27]} Bxd4 {[%emt 0:00:08]} 15. Bf1 {[%emt 0:01:12]} Qf6 {[%emt 0:03:24]} 16. Qc2 {[%emt 0:01:57]} Ne6 {[%emt 0:03:14]} 17. Be3 {[%emt 0:02:30]} Be5 {[%emt 0:04:14]} 18. Qd2 {[%emt 0:11:09]} g5 {[%emt 0:20:46]} 19. Rab1 {[%emt 0:07:40]} Kh8 {[%emt 0:01:15]} 20. Be2 {[%emt 0:10:16]} Nf4 {[%emt 0:04:09]} 21. Bg4 {[%emt 0:00:22]} Bxg4 {[%emt 0:09:13]} 22. hxg4 {[%emt 0:00:17]} Qe6 {[%emt 0:00:26]} 23. Bxf4 {[%emt 0:00:29]} gxf4 {[%emt 0:04:52]} 24. f3 {[%emt 0:04:12]} Rg8 {[%emt 0:09:00]} 25. Kf2 {[%emt 0:04:31]} Qxc4 {[%emt 0:01:01]} 26. Rh1 {[%emt 0:00:20]} Bd4+ {[%emt 0:03:10]} 27. Ke1 {[%emt 0:00:09]} d5 {[%emt 0:06:42]} 28. Qxf4 {[%emt 0:07:40]} dxe4 {[%emt 0:01:01]} 29. Nxe4 {[%emt 0:03:06]} Rae8 {[%emt 0:02:49]} 30. Kd2 {[%emt 0:06:31]} Rg6 {[%emt 0:01:47]} 31. b3 {[%emt 0:02:14]} Qd5 {[%emt 0:00:42]} 32. Kc2 {[%emt 0:00:30]} Be5 {[%emt 0:00:14]} 33. Qd2 {[%emt 0:00:36]} Qxd2+ {[%emt 0:00:34]} 34. Kxd2 {[%emt 0:00:25]} Rd8+ {[%emt 0:00:06]} 35. Ke3 {[%emt 0:00:34]} f5 {[%emt 0:00:40]} 36. gxf5 {[%emt 0:00:56]} Rxg2 {[%emt 0:00:12]} 37. Rh5 {[%emt 0:01:00]} Bc7 {[%emt 0:01:09]} 38. f4 {[%emt 0:00:57]} Bb6+ {[%emt 0:00:24]} 39. Kf3 {[%emt 0:00:19]} Rg7 {[%emt 0:00:06]} 40. Ng5 {[%emt 0:00:46]} Rd3+ {[%emt 0:00:36]} 41. Kg4 {[%emt 0:31:27]} Bd8 {[%emt 0:11:25]} 42. Re1 {[%emt 0:00:00]} Bxg5 {[%emt 0:01:06]} 43. Rxg5 {[%emt 0:00:00]} h5+ {[%emt 0:06:39]} 44. Kxh5 {[%emt 0:00:00]} Rd8 {[%emt 0:09:02]} 45. f6 {[%emt 0:00:00]} Rf7 {[%emt 0:00:40]} 46. Kg6 {[%emt 0:00:00]} Rh7 {[%emt 0:02:55]} 47. Re7 {[%emt 0:00:00]} Rg8+ {[%emt 0:00:40]} 48. Kf5 {[%emt 0:00:00]} Rf8 {[%emt 0:01:41]} 49. Rxh7+ {[%emt 0:00:00]} Kxh7 {[%emt 0:00:07]} 50. Ke6 {[%emt 0:00:00]} 1-0

[Event "32nd GER-ch Seniors-50 2020"]
[Site "Magdeburg"]
[Date "2020.08.18"]
[Round "5.8"]
[White "Spiess, Thomas"]
[Black "Schober, Ralf"]
[Result "1/2-1/2"]
[ECO "A41"]
[WhiteElo "1976"]
[BlackElo "2030"]
[Annotator "RC"]
[PlyCount "47"]
[EventDate "2020.08.14"]
[EventType "swiss"]
[EventCountry "GER"]
[SourceTitle "playchess.com"]
[Source "ChessBase"]
[SourceQuality "1"]
[TimeControl "40/5400+30:1800+30"]

1. Nf3 {[%emt 0:00:00]} d6 {[%emt 0:00:27]} 2. d4 {[%emt 0:00:00]} Bg4 {[%emt 0:01:22]} 3. e4 {[%emt 0:00:01]} Nc6 {[%emt 0:03:18]} 4. d5 {[%emt 0:03:27]} Ne5 {[%emt 0:04:10]} 5. Be2 {[%emt 0:06:17]} Nxf3+ {[%emt 0:04:19]} 6. Bxf3 {[%emt 0:00:12]} Bxf3 {[%emt 0:00:08]} 7. Qxf3 {[%emt 0:00:10]} g6 {[%emt 0:00:08]} 8. c4 {[%emt 0:01:36]} Bg7 {[%emt 0:01:04]} 9. Nc3 {[%emt 0:00:28]} Nf6 {[%emt 0:00:53]} 10. Be3 {[%emt 0:00:36]} O-O {[%emt 0:00:14]} 11. Bd4 {[%emt 0:01:09]} Nd7 {[%emt 0:03:30]} 12. Bxg7 {[%emt 0:00:28]} Kxg7 {[%emt 0:00:34]} 13. O-O {[%emt 0:00:22]} e5 {[%emt 0:01:11]} 14. Qe3 {[%emt 0:01:26]} f5 {[%emt 0:02:36]} 15. f3 {[%emt 0:00:26]} fxe4 {[%emt 0:04:20]} 16. Nxe4 {[%emt 0:00:10]} h6 {[%emt 0:00:08]} 17. g3 {[%emt 0:02:42]} Qe7 {[%emt 0:01:07]} 18. Rf2 {[%emt 0:00:39]} Nf6 {[%emt 0:02:06]} 19. Raf1 {[%emt 0:00:59]} Nxe4 {[%emt 0:00:22]} 20. fxe4 {[%emt 0:00:05]} b6 {[%emt 0:00:18]} 21. Rxf8 {[%emt 0:00:46]} Rxf8 {[%emt 0:00:09]} 22. Rxf8 {[%emt 0:00:16]} Qxf8 {[%emt 0:00:09]} 23. Qf2 {[%emt 0:00:46]} Qxf2+ {[%emt 0:03:07]} 24. Kxf2 {[%emt 0:00:15]} 1/2-1/2